bitfinex/quotes_BTCUSD_20251114
["timestamp","ask_amount","ask_price","bid_price","bid_amount"]
[1763078401397,0.10716409,99778.0,99777.0,0.00326709]
[1763078401586,0.10716409,99778.0,99777.0,0.00426709]
[1763078403519,0.04341874,99769.0,99740.0,0.0004]
[1763078403720,0.05605,99741.0,99740.0,0.00053821]
[1763078403951,0.02263,99741.0,99740.0,0.00053821]
[1763078404311,0.05605,99741.0,99740.0,0.00053821]
[1763078405093,0.16514874,99741.0,99740.0,0.00053821]
[1763078405318,0.36566808,99741.0,99740.0,0.00153821]
[1763078405530,0.37579739,99741.0,99740.0,1e-08]
[1763078405690,0.29998808,99741.0,99740.0,1e-08]
[1763078405893,0.36562808,99741.0,99740.0,1e-08]
[1763078407720,0.29998808,99741.0,99740.0,0.00100001]
[1763078407942,0.36562808,99741.0,99740.0,0.001]
[1763078408300,0.36562808,99741.0,99740.0,0.002]
[1763078408713,0.36562808,99741.0,99740.0,1e-08]
[1763078410588,0.46379723,99741.0,99740.0,1e-08]
[1763078411007,0.36562808,99741.0,99740.0,0.00094896]
[1763078411211,0.36562808,99741.0,99740.0,1e-08]
[1763078412160,0.36562808,99741.0,99710.0,0.0004]
[1763078412161,0.30212841,99711.0,99710.0,1e-08]
[1763078412389,0.36776841,99711.0,99710.0,0.00013746]
[1763078412549,0.36776841,99711.0,99690.0,0.0004]
[1763078412550,0.24403865,99691.0,99690.0,0.0004]
[1763078412756,0.30230678,99691.0,99690.0,0.0004]
[1763078412976,0.30230678,99691.0,99690.0,0.00168326]
[1763078412977,0.36794678,99691.0,99690.0,0.00168326]
[1763078413154,0.37987678,99691.0,99690.0,0.00168326]
[1763078414141,0.31423678,99691.0,99690.0,0.00168326]
[1763078414294,0.37987678,99691.0,99690.0,0.00168326]
[1763078414495,0.31423678,99691.0,99690.0,0.00168326]
[1763078414879,0.37987678,99691.0,99690.0,0.00168326]
[1763078415253,0.37987678,99691.0,99690.0,0.00268326]
[1763078415460,0.37987678,99691.0,99690.0,0.00168326]
[1763078415610,0.37987678,99691.0,99670.0,0.00049]
[1763078415611,0.24407891,99671.0,99670.0,0.00049]
[1763078415818,0.34253891,99671.0,99670.0,0.00049]
[1763078416185,0.34253891,99671.0,99620.0,18.57294104]
[1763078416186,0.04341874,99649.0,99626.0,0.00524127]
[1763078416427,0.20074449,99630.0,99626.0,0.00524127]
[1763078416654,0.20074476,99629.0,99626.0,0.00524127]
[1763078416863,0.03282,99627.0,99626.0,0.00524127]
[1763078417028,0.06568,99630.0,99626.0,0.00524127]
[1763078417229,0.07623874,99627.0,99626.0,0.00524127]
[1763078417517,0.20076088,99621.0,99620.0,18.5629029]
[1763078417637,0.27699962,99621.0,99620.0,18.5629029]
[1763078418477,0.34267962,99621.0,99620.0,18.5629029]
[1763078418848,0.34267962,99621.0,99620.0,18.4615429]
[1763078419060,0.34267962,99621.0,99620.0,17.9960047]
[1763078419265,0.37483167,99621.0,99620.0,17.9940047]
[1763078419504,0.40217852,99621.0,99620.0,17.9940047]
[1763078419723,0.37483167,99621.0,99620.0,17.5302479]
[1763078419939,0.37483167,99621.0,99620.0,16.80298309]
[1763078419940,0.40212061,99621.0,99620.0,16.80298309]
[1763078420243,2.4023857,99621.0,99620.0,15.49542985]
[1763078420433,2.45241749,99621.0,99620.0,14.74310317]
[1763078420635,2.38673749,99621.0,99620.0,14.38931134]
[1763078420842,2.38669183,99621.0,99620.0,12.99314816]
[1763078421086,2.57385183,99621.0,99620.0,12.80878084]
[1763078421288,2.55214858,99621.0,99620.0,12.77862159]
[1763078421479,2.48968897,99621.0,99620.0,12.4665387]
[1763078421688,2.33644722,99621.0,99620.0,12.41237945]
[1763078421891,2.34871962,99621.0,99620.0,12.3822202]
[1763078422096,0.34571962,99621.0,99620.0,12.3822202]
[1763078422502,2.34571962,99621.0,99620.0,11.67066664]
[1763078422831,2.37098408,99621.0,99620.0,4.1948989]
[1763078423001,2.37098408,99621.0,99520.0,0.0004]
[1763078423002,0.20096261,99521.0,99520.0,0.0004]
[1763078423174,0.23378261,99521.0,99520.0,0.0004]
[1763078423376,0.03282,99521.0,99520.0,0.0004]
[1763078423585,0.02012,99528.0,99520.0,0.0004]
[1763078424044,0.02012,99528.0,99521.0,0.401439]
[1763078424217,0.02025778,99528.0,99521.0,0.401439]
[1763078424423,0.02025778,99528.0,99523.0,0.09816915]
[1763078424805,0.02025778,99528.0,99520.0,0.0014]
[1763078425007,0.02025778,99528.0,99521.0,0.09816915]
[1763078425308,0.02025778,99528.0,99521.0,0.09916915]
[1763078425530,0.02019962,99528.0,99521.0,0.09916915]
[1763078425690,0.23378059,99522.0,99521.0,0.001]
[1763078425906,0.201003,99501.0,99500.0,10.005]
[1763078426104,0.27724174,99501.0,99500.0,10.005]
[1763078426321,0.27724174,99501.0,99500.0,8.07413476]
[1763078426538,2.30306297,99501.0,99500.0,7.62875708]
[1763078426737,0.30744693,99501.0,99500.0,7.62375708]
[1763078426938,2.30744693,99501.0,99500.0,7.27522146]
[1763078427146,2.30744693,99501.0,99500.0,6.92004427]
[1763078427342,2.30744693,99501.0,99500.0,6.7252378]
[1763078427680,2.30744693,99501.0,99500.0,6.56308922]
[1763078427916,0.27724174,99501.0,99500.0,3.56308922]
[1763078428118,0.03282,99501.0,99500.0,3.56308922]
[1763078428327,0.001,99501.0,99500.0,3.56308922]
[1763078428549,0.002,99501.0,99500.0,3.76409424]
[1763078428767,0.002,99501.0,99500.0,3.56308922]
[1763078428964,0.001,99501.0,99500.0,3.56308922]
[1763078429211,0.00013778,99528.0,99500.0,3.56308922]
[1763078429584,0.00013778,99528.0,99503.0,0.20099794]
[1763078429994,0.00013778,99528.0,99501.0,0.24984168]
[1763078430191,0.00013778,99528.0,99519.0,0.09816915]
[1763078430514,0.00313778,99528.0,99519.0,0.09816915]
[1763078430660,0.00313778,99528.0,99507.0,0.20098974]
[1763078430661,0.00313778,99528.0,99501.0,0.14700915]
[1763078430852,0.20095973,99523.0,99501.0,0.09816915]
[1763078431053,0.04963778,99528.0,99500.0,3.56308922]
[1763078431248,0.20099537,99505.0,99500.0,3.56308922]
[1763078431453,0.24438538,99520.0,99519.0,0.001]
[1763078431871,0.20096664,99520.0,99519.0,0.001]
[1763078432070,0.20096152,99522.0,99519.0,0.001]
[1763078432271,0.14158789,99520.0,99519.0,0.001]
[1763078432516,0.201003,99501.0,99500.0,3.56308922]
[1763078432909,0.201003,99501.0,99500.0,3.35408922]
[1763078433333,0.201003,99501.0,99500.0,3.35308922]
[1763078433507,0.0495,99509.0,99500.0,3.35308922]
[1763078433692,0.0495,99509.0,99500.0,3.35408922]
[1763078433894,0.2009771,99514.0,99500.0,3.35717677]
[1763078434135,0.20098456,99511.0,99500.0,3.35408922]
[1763078434395,0.01004722,99530.0,99500.0,3.35408922]
[1763078434552,0.0200462,99540.0,99500.0,3.35408922]
[1763078434553,0.0495,99533.0,99500.0,3.35308922]
[1763078434756,0.0200462,99540.0,99500.0,3.36313947]
[1763078434936,0.0495,99543.0,99520.0,0.09816915]
[1763078435333,0.20093639,99534.0,99520.0,0.09816915]
[1763078435648,0.20095049,99527.0,99520.0,0.09816915]
[1763078435846,0.0495,99543.0,99520.0,0.09816915]
[1763078436248,0.05954621,99540.0,99505.0,0.09816915]
[1763078436450,0.20094299,99531.0,99521.0,0.09816915]
[1763078436634,0.0495,99540.0,99521.0,0.09816915]
[1763078436835,0.02376,99551.0,99521.0,0.09816915]
[1763078437054,0.02376,99551.0,99522.0,0.04921]
[1763078437255,0.2009418,99532.0,99521.0,0.09816915]
[1763078437592,0.0495,99522.0,99505.0,0.09816915]
[1763078437716,0.20099282,99507.0,99505.0,0.09816915]
[1763078437913,0.20099282,99507.0,99500.0,3.35308922]
[1763078437914,0.201003,99501.0,99500.0,3.35308922]
[1763078438114,0.221063,99501.0,99500.0,3.35308922]
[1763078438933,0.270563,99501.0,99500.0,3.35308922]
[1763078439950,0.02006,99501.0,99500.0,3.35308922]
[1763078440368,0.02006,99510.0,99500.0,3.35617677]
[1763078440571,0.20098857,99509.0,99500.0,3.35308922]
[1763078440742,0.20100292,99502.0,99500.0,3.35308922]
[1763078441531,0.00049,99501.0,99500.0,3.35308922]
[1763078442385,0.00049,99501.0,99500.0,3.35408922]
[1763078442919,0.00049,99501.0,99500.0,3.35308922]
[1763078443131,0.04390874,99501.0,99500.0,3.35308922]
[1763078443542,0.04390874,99501.0,99500.0,2.89083526]
[1763078443745,0.04390874,99501.0,99500.0,2.88983526]
[1763078443952,0.04390874,99501.0,99500.0,2.89083526]
[1763078444366,0.00049,99501.0,99500.0,2.89083526]
[1763078445150,0.00049,99501.0,99500.0,2.88983526]
[1763078445450,0.0495,99509.0,99500.0,2.88983526]
[1763078445628,0.20099208,99507.0,99500.0,2.88983526]
[1763078445827,0.02006,99510.0,99500.0,2.88983526]
[1763078446178,0.02006,99510.0,99500.0,2.88883216]
[1763078446376,0.02006,99510.0,99500.0,2.88983216]
[1763078446661,0.01004722,99530.0,99501.0,0.09816915]
[1763078446662,0.02006,99517.0,99501.0,0.09816915]
[1763078446854,0.20092855,99538.0,99509.0,0.04921]
[1763078446991,0.20093163,99537.0,99516.0,0.10084459]
[1763078447207,0.323,99539.0,99516.0,0.09816915]
[1763078447430,0.20094504,99530.0,99509.0,0.14879]
[1763078447629,0.323,99531.0,99517.0,0.09816915]
[1763078447829,0.20093553,99535.0,99517.0,0.09816915]
[1763078448033,0.20093195,99537.0,99517.0,0.09816915]
[1763078448265,0.20090796,99549.0,99527.0,0.04921]
[1763078448469,0.20091274,99546.0,99527.0,0.04921]
[1763078448669,0.20093638,99534.0,99527.0,0.04921]
[1763078448922,0.20093425,99536.0,99527.0,0.04921]
[1763078449125,0.20092361,99541.0,99527.0,0.04921]
[1763078449326,0.01856076,99528.0,99517.0,0.09816915]
[1763078449535,0.2193734,99527.0,99517.0,0.09816915]
[1763078449700,0.01842291,99526.0,99517.0,0.09816915]
[1763078449903,0.00013778,99528.0,99517.0,0.09816915]
[1763078450113,0.00013778,99528.0,99500.0,2.88883216]
[1763078450114,0.20095251,99526.0,99500.0,2.88883216]
[1763078450357,0.2009665,99520.0,99517.0,0.09816915]
[1763078450568,0.06956,99527.0,99500.0,2.88883216]
[1763078450870,0.20079967,99513.0,99500.0,2.88883216]
[1763078451068,0.20097711,99514.0,99500.0,2.88883216]
[1763078451197,0.20097579,99515.0,99500.0,2.88883216]
[1763078451397,0.20097254,99517.0,99500.0,2.88883216]
[1763078451653,0.01844591,99516.0,99502.0,0.09958]
[1763078451817,0.01844591,99515.0,99502.0,0.09958]
[1763078452018,0.323,99524.0,99502.0,0.09958]
[1763078452219,0.02766828,99523.0,99516.0,0.09816915]
[1763078452415,0.02766828,99522.0,99516.0,0.09816915]
[1763078452612,0.02767909,99521.0,99517.0,0.04921]
[1763078452846,0.01844552,99520.0,99517.0,0.04921]
[1763078453051,0.01844552,99519.0,99518.0,0.09958]
[1763078453246,0.01844552,99527.0,99518.0,0.09958]
[1763078453512,0.02768022,99526.0,99518.0,0.09958]
[1763078453631,0.00013778,99528.0,99516.0,0.001]
[1763078453632,0.02006,99519.0,99516.0,0.001]
[1763078453838,0.02767964,99518.0,99517.0,0.09816915]
[1763078454035,0.00013778,99528.0,99517.0,0.09816915]
[1763078454036,0.00013778,99528.0,99527.0,0.04921]
[1763078454273,0.02784159,99528.0,99517.0,0.19774915]
[1763078454476,0.02770381,99527.0,99517.0,0.09816915]
[1763078454680,0.02657617,99566.0,99530.0,0.01004722]
[1763078455072,0.00924081,99565.0,99557.0,0.09816915]
[1763078455290,0.00924081,99564.0,99557.0,0.09816915]
[1763078455517,0.00013854,99566.0,99557.0,0.09816915]
[1763078455743,0.00013854,99566.0,99558.0,0.09958]
[1763078456958,0.00013854,99566.0,99558.0,0.10058]
[1763078457756,0.00013854,99566.0,99565.0,0.2008738]
[1763078459112,0.00013854,99566.0,99565.0,0.2018738]
[1763078459352,0.00013854,99566.0,99565.0,0.2038738]
[1763078459525,0.00013854,99566.0,99565.0,0.205288]
[1763078459946,0.00013854,99566.0,99565.0,0.204288]
[1763078460194,0.00013854,99566.0,99565.0,0.0034142]
[1763078460598,0.00013854,99566.0,99565.0,0.202288]
[1763078460819,0.00413854,99566.0,99565.0,0.202288]
[1763078461034,0.00913854,99566.0,99565.0,0.203288]
[1763078461240,0.00913854,99566.0,99565.0,0.2022849]
[1763078461446,0.00413854,99566.0,99565.0,0.2012849]
[1763078461695,0.02128614,99598.0,99582.0,0.09816915]
[1763078461916,0.24274127,99597.0,99582.0,0.09816915]
[1763078462123,0.01,99566.0,99565.0,0.001]
[1763078462329,0.03050432,99596.0,99564.0,0.04948]
[1763078462330,0.017649,99596.0,99595.0,0.06204]
[1763078462534,0.02660768,99614.0,99595.0,0.11152]
[1763078462742,0.00921622,99613.0,99606.0,0.06204]
[1763078463010,0.02660768,99615.0,99612.0,0.09816915]
[1763078463237,0.00921591,99614.0,99612.0,0.09816915]
[1763078463437,0.00921591,99613.0,99612.0,0.09816915]
[1763078463968,0.00013854,99615.0,99612.0,0.09816915]
[1763078464183,0.00013854,99615.0,99613.0,0.294267]
[1763078464394,0.00013854,99615.0,99613.0,0.09349]
[1763078464845,0.00013854,99615.0,99613.0,0.0924869]
[1763078465002,0.00013854,99615.0,99613.0,0.29326198]
[1763078465502,0.00013854,99615.0,99613.0,0.20277508]
[1763078465647,0.00013854,99615.0,99613.0,0.002]
[1763078465830,0.00013854,99615.0,99613.0,0.001]
[1763078466234,0.00013854,99615.0,99613.0,0.003]
[1763078466477,0.00013854,99615.0,99613.0,0.20177529]
[1763078466696,0.00013854,99615.0,99613.0,0.20077529]
[1763078466904,0.00013854,99615.0,99610.0,0.20078124]
[1763078466905,0.00113854,99615.0,99614.0,0.09489]
[1763078467243,0.00113854,99615.0,99614.0,0.29566499]
[1763078467671,0.00113854,99615.0,99614.0,0.20077499]
[1763078467871,0.00013854,99615.0,99614.0,0.20077499]
[1763078468206,0.00013854,99615.0,99614.0,0.56719373]
[1763078468739,0.00013854,99615.0,99614.0,0.57019373]
[1763078468995,0.0002,99630.0,99629.0,0.20074476]
[1763078469364,0.0002,99630.0,99629.0,0.30818288]
[1763078469821,0.0002,99630.0,99629.0,0.24692288]
[1763078470593,0.0002,99630.0,99629.0,0.04617812]
[1763078470789,0.0002,99630.0,99629.0,0.14106812]
[1763078471287,0.0082,99630.0,99629.0,0.04617812]
[1763078471545,0.0042,99630.0,99629.0,0.04617812]
[1763078471811,0.0002,99630.0,99629.0,0.24692288]
[1763078472055,0.0052,99630.0,99629.0,0.04617812]
[1763078473225,0.0052,99630.0,99629.0,0.24692288]
[1763078473451,0.0052,99630.0,99629.0,0.04617812]
[1763078473869,0.0052,99630.0,99629.0,0.00045812]
[1763078474310,0.0002,99630.0,99629.0,0.00345812]
[1763078474522,0.0002,99630.0,99629.0,0.00645812]
[1763078474742,0.0002,99630.0,99629.0,0.00345812]
[1763078474991,0.0002,99630.0,99629.0,0.00645812]
[1763078475212,0.0002,99630.0,99629.0,0.00345812]
[1763078475438,0.0002,99630.0,99629.0,0.00645812]
[1763078475887,0.0002,99630.0,99629.0,0.00345812]
[1763078476101,0.0002,99630.0,99629.0,0.00645812]
[1763078477037,0.0002,99630.0,99629.0,0.00345812]
[1763078477466,0.0002,99630.0,99629.0,0.00245812]
[1763078477705,0.0002,99630.0,99629.0,0.09734812]
[1763078477909,0.0002,99630.0,99629.0,0.09834812]
[1763078478135,0.0002,99630.0,99629.0,0.10034812]
[1763078478353,0.0002,99630.0,99629.0,0.09734812]
[1763078478794,0.0002,99630.0,99629.0,0.09834812]
[1763078479040,0.0002,99630.0,99629.0,0.00045812]
[1763078479243,0.0002,99630.0,99629.0,0.00345812]
[1763078479461,0.0002,99630.0,99629.0,0.00245502]
[1763078479930,0.0002,99630.0,99629.0,0.00545502]
[1763078480577,0.0002,99630.0,99624.0,0.09816915]
[1763078480824,0.00066191,99630.0,99629.0,0.006]
[1763078481050,0.00066191,99630.0,99629.0,0.002]
[1763078481457,0.00066191,99630.0,99629.0,0.003]
[1763078482080,0.20140465,99630.0,99629.0,0.003]
[1763078482295,0.00066191,99630.0,99629.0,0.0019969]
[1763078483252,0.00066191,99630.0,99629.0,0.0039969]
[1763078483662,0.2007413,99631.0,99629.0,0.0039969]
[1763078484040,0.3482,99647.0,99630.0,0.09816915]
[1763078484240,0.34833849,99647.0,99630.0,0.09816915]
[1763078484673,0.20072276,99640.0,99630.0,0.09816915]
[1763078484874,0.34833849,99647.0,99630.0,0.09816915]
[1763078484875,0.54904793,99647.0,99630.0,0.09816915]
[1763078485076,0.00013849,99647.0,99646.0,0.14388915]
[1763078485509,0.00013849,99647.0,99630.0,0.09916915]
[1763078486450,0.00013849,99647.0,99630.0,0.10016915]
[1763078486675,0.00013849,99647.0,99630.0,0.29991138]
[1763078486878,0.00013849,99647.0,99645.0,0.09816915]
[1763078487055,0.00013849,99647.0,99646.0,0.002]
[1763078487257,0.00013849,99647.0,99645.0,0.09816915]
[1763078487843,0.00013849,99647.0,99645.0,0.29888132]
[1763078488044,0.00013849,99647.0,99646.0,0.09489]
[1763078488221,0.00013849,99647.0,99646.0,0.09689]
[1763078488603,0.00013849,99647.0,99646.0,0.29560051]
[1763078489079,0.00013849,99647.0,99645.0,0.09816915]
[1763078489363,0.00013849,99647.0,99646.0,0.20071051]
[1763078489722,0.00013849,99647.0,99645.0,0.10016915]
[1763078489964,0.00013849,99647.0,99645.0,0.10216915]
[1763078490184,0.00013849,99647.0,99645.0,0.10016915]
[1763078490408,0.00013849,99647.0,99645.0,0.09816915]
[1763078490626,0.00013849,99647.0,99646.0,0.004]
[1763078490835,0.00013849,99647.0,99646.0,0.002]
[1763078491076,0.00013849,99647.0,99630.0,0.09816915]
[1763078491295,0.00013849,99647.0,99645.0,0.002]
[1763078491296,0.20071051,99646.0,99645.0,0.002]
[1763078491517,0.20074073,99631.0,99630.0,0.09816915]
[1763078491738,0.20072542,99639.0,99630.0,0.09816915]
[1763078491957,0.20071831,99643.0,99630.0,0.09716605]
[1763078492220,0.20071711,99643.0,99630.0,0.09716605]
[1763078492400,0.20071051,99646.0,99645.0,0.002]
[1763078492869,0.20071051,99646.0,99630.0,0.09716605]
[1763078493084,0.00013849,99647.0,99630.0,0.09716605]
[1763078493311,0.00013849,99647.0,99630.0,0.003]
[1763078493312,0.20073542,99634.0,99630.0,0.003]
[1763078493556,0.32349,99631.0,99630.0,0.002]
[1763078493796,0.20079249,99606.0,99590.0,0.19200915]
[1763078494036,0.01003814,99620.0,99606.0,0.09816915]
[1763078494037,0.20077794,99613.0,99606.0,0.09816915]
[1763078494282,0.04019,99619.0,99606.0,0.09816915]
[1763078494521,0.0495,99607.0,99590.0,0.09816915]
[1763078494770,0.20082079,99592.0,99590.0,0.09816915]
[1763078494990,0.0495,99607.0,99590.0,0.09863106]
[1763078495219,0.20082027,99592.0,99590.0,0.09863106]
[1763078495481,0.00049,99591.0,99590.0,0.00046191]
[1763078495687,0.2008213,99592.0,99590.0,0.00046191]
[1763078495868,0.04341874,99595.0,99590.0,0.00046191]
[1763078496105,0.20081862,99593.0,99590.0,0.00046191]
[1763078496282,0.20082135,99591.0,99590.0,0.00046191]
[1763078496492,0.20131135,99591.0,99590.0,0.00246191]
[1763078496690,0.20131135,99591.0,99590.0,0.00446191]
[1763078497022,0.0495,99599.0,99590.0,0.00046191]
[1763078497294,0.00049,99591.0,99590.0,0.00446191]
[1763078497728,0.00049,99591.0,99590.0,0.00246191]
[1763078497858,0.00049,99591.0,99590.0,0.00446191]
[1763078499103,0.00049,99591.0,99590.0,0.00246191]
[1763078499474,0.00049,99591.0,99590.0,0.00446191]
[1763078499943,0.00049,99591.0,99590.0,0.00246191]
[1763078500162,0.00049,99591.0,99590.0,0.00345881]
[1763078500369,0.20081651,99594.0,99590.0,0.00345881]
[1763078500599,0.20082116,99592.0,99590.0,0.00345881]
[1763078501176,0.00049,99591.0,99590.0,0.00345881]
[1763078501574,0.00049,99591.0,99590.0,0.00145881]
[1763078501774,0.06078427,99591.0,99590.0,0.00145881]
[1763078501990,0.20080019,99602.0,99590.0,0.00145881]
[1763078501991,0.20082046,99592.0,99590.0,0.00345881]
[1763078502217,0.00049,99591.0,99590.0,0.002]
[1763078502439,0.00049,99591.0,99567.0,0.04907]
[1763078502639,0.201775,99591.0,99590.0,0.002]
[1763078503256,0.20083011,99587.0,99567.0,0.24993844]
[1763078503459,0.26117535,99586.0,99567.0,0.04907]
[1763078503669,0.06034301,99586.0,99567.0,0.04907]
[1763078503875,0.00246163,99591.0,99567.0,0.24993881]
[1763078504122,0.20083226,99586.0,99567.0,0.24993881]
[1763078504656,0.00246163,99591.0,99581.0,0.09816915]
[1763078504777,0.201285,99591.0,99572.0,0.00023106]
[1763078504991,0.20084054,99582.0,99572.0,0.00223106]
[1763078505205,0.03406,99573.0,99572.0,0.00223106]
[1763078505412,0.40047874,99573.0,99572.0,0.00023106]
[1763078505617,0.40047874,99573.0,99572.0,0.00223106]
[1763078505816,0.40047874,99573.0,99572.0,0.00423106]
[1763078506156,0.40047874,99573.0,99572.0,0.00223106]
[1763078506366,0.4989621,99573.0,99572.0,0.00323106]
[1763078506522,0.4989621,99573.0,99572.0,0.00023106]
[1763078506727,0.4989621,99573.0,99572.0,0.00223106]
[1763078506970,0.4989621,99573.0,99572.0,0.00423106]
[1763078507594,0.4989621,99573.0,99572.0,0.002]
[1763078508331,0.40047874,99573.0,99572.0,0.002]
[1763078508752,0.01004419,99560.0,99530.0,0.09816915]
[1763078509167,0.0495,99559.0,99530.0,0.09816915]
[1763078509362,0.20092691,99539.0,99530.0,0.09816915]
[1763078509564,0.0495,99559.0,99520.0,0.0004]
[1763078509565,0.04019,99531.0,99520.0,0.0004]
[1763078509815,0.04341874,99558.0,99521.0,0.04769486]
[1763078509816,0.0100452,99550.0,99521.0,0.04769486]
[1763078510027,0.00046106,99531.0,99521.0,0.14153486]
[1763078510224,0.00046106,99531.0,99530.0,0.001]
[1763078510402,0.00046106,99531.0,99520.0,0.0004]
[1763078510603,0.20095624,99525.0,99520.0,0.0004]
[1763078510837,0.20095771,99524.0,99520.0,0.0004]
[1763078511172,0.00046106,99531.0,99520.0,0.04947]
[1763078511385,0.00046106,99531.0,99528.0,0.09816915]
[1763078511519,0.00046106,99531.0,99520.0,0.04947]
[1763078511722,0.00046106,99531.0,99525.0,0.09816915]
[1763078512527,0.00046106,99531.0,99528.0,0.002]
[1763078512983,0.00046106,99531.0,99525.0,0.10016915]
[1763078513653,0.00046106,99531.0,99528.0,0.002]
[1763078514861,0.00046106,99531.0,99528.0,0.004]
[1763078515035,0.00046106,99531.0,99528.0,0.002]
[1763078515244,0.00046106,99531.0,99530.0,0.0010806]
[1763078515448,0.00046106,99531.0,99530.0,0.20202503]
[1763078515662,0.00046106,99531.0,99530.0,0.29586503]
[1763078515884,0.00046106,99531.0,99530.0,0.20202503]
[1763078516100,0.00046106,99531.0,99530.0,0.0010806]
[1763078516568,0.00046106,99531.0,99530.0,0.0050806]
[1763078517041,0.00046106,99531.0,99530.0,0.0989206]
[1763078517545,0.00046106,99531.0,99530.0,0.0969206]
[1763078518266,0.00046106,99531.0,99530.0,0.29786503]
[1763078518495,0.00046106,99531.0,99530.0,0.29886193]
[1763078518773,0.00046106,99531.0,99530.0,0.20102193]
[1763078519009,0.00046106,99531.0,99530.0,0.20702193]
[1763078519709,0.00046106,99531.0,99530.0,0.0060775]
[1763078520276,0.04996106,99531.0,99530.0,0.0060775]
[1763078520533,0.5052445,99531.0,99530.0,0.0060775]
[1763078520795,0.5052445,99531.0,99530.0,0.0030775]
[1763078521080,0.5052445,99531.0,99520.0,0.0004]
[1763078521081,0.56736317,99530.0,99520.0,0.0004]
[1763078521553,0.13882576,99531.0,99520.0,0.0004]
[1763078521569,0.29432221,99531.0,99530.0,0.002]
[1763078521819,0.32346106,99531.0,99520.0,0.0004]
[1763078522098,0.37247106,99531.0,99530.0,0.003]
[1763078522379,0.41321217,99531.0,99530.0,0.002]
[1763078522645,0.37247106,99531.0,99520.0,0.0014]
[1763078522898,0.37247106,99531.0,99530.0,0.001]
[1763078523140,0.00046106,99531.0,99530.0,0.06732]
[1763078523913,0.00046106,99531.0,99529.0,0.20094566]
[1763078524372,0.00046106,99531.0,99530.0,0.09278]
[1763078524594,0.0495,99591.0,99530.0,0.09278]
[1763078524595,0.0495,99605.0,99573.0,0.20085609]
[1763078524837,0.02786478,99599.0,99578.0,0.02744]
[1763078525091,0.323,99588.0,99575.0,0.09816915]
[1763078525302,0.01841676,99587.0,99575.0,0.09816915]
[1763078525510,0.01841676,99586.0,99575.0,0.09816915]
[1763078525719,0.00049,99576.0,99575.0,0.09816915]
[1763078525921,0.323,99574.0,99573.0,0.00013854]
[1763078526125,0.34191775,99574.0,99573.0,0.00013854]
[1763078526551,0.34191775,99574.0,99552.0,0.09816915]
[1763078526552,0.01004318,99570.0,99529.0,0.0464]
[1763078526784,0.20091013,99547.0,99533.0,0.09830769]
[1763078526987,0.05362384,99569.0,99533.0,0.09830769]
[1763078526988,0.20091372,99546.0,99533.0,0.09830769]
[1763078527187,0.20090545,99550.0,99533.0,0.09830769]
[1763078527401,0.36641874,99567.0,99533.0,0.09830769]
[1763078527610,0.20091023,99547.0,99533.0,0.09830769]
[1763078527895,0.04341874,99567.0,99533.0,0.09830769]
[1763078527896,0.20090945,99548.0,99533.0,0.09830769]
[1763078528404,0.20090428,99550.0,99533.0,0.09830769]
[1763078528602,0.20088667,99559.0,99548.0,0.09816915]
[1763078528808,0.01846054,99558.0,99549.0,0.04836]
[1763078529034,0.323,99568.0,99533.0,0.00013854]
[1763078529035,0.00049,99549.0,99533.0,0.00013854]
[1763078529241,0.323,99547.0,99541.0,0.09816915]
[1763078529442,0.20091952,99543.0,99541.0,0.09816915]
[1763078529642,0.20091952,99543.0,99533.0,0.00313854]
[1763078529643,0.20093636,99534.0,99533.0,0.00213854]
[1763078529879,0.58308212,99534.0,99533.0,0.00213854]
[1763078530082,0.62650086,99534.0,99533.0,0.00213854]
[1763078530532,0.62650086,99534.0,99533.0,0.00013854]
[1763078530905,0.62650086,99534.0,99533.0,0.00113854]
[1763078531345,0.62650086,99534.0,99533.0,0.00013854]
[1763078531895,0.34146964,99534.0,99533.0,0.00013854]
[1763078533887,0.01846964,99534.0,99533.0,0.00013854]
[1763078534120,0.04019,99549.0,99533.0,0.00213854]
[1763078534334,0.01848571,99548.0,99534.0,0.20093475]
[1763078534534,0.01848571,99547.0,99538.0,0.09816915]
[1763078534733,0.04019,99549.0,99538.0,0.09816915]
[1763078534734,0.01848571,99546.0,99538.0,0.09816915]
[1763078535003,0.01848571,99545.0,99538.0,0.09816915]
[1763078535204,0.01848571,99544.0,99538.0,0.09816915]
[1763078535428,0.01848571,99543.0,99538.0,0.09816915]
[1763078535633,0.01848571,99542.0,99538.0,0.29909657]
[1763078535772,0.01848571,99541.0,99539.0,0.20092573]
[1763078535976,0.04341874,99566.0,99543.0,0.20091759]
[1763078536298,0.21937342,99565.0,99553.0,0.09816915]
[1763078536500,0.01849844,99564.0,99553.0,0.09816915]
[1763078536663,0.01849844,99563.0,99553.0,0.09816915]
[1763078537032,0.20089398,99555.0,99553.0,0.09816915]
[1763078537225,0.01849844,99554.0,99553.0,0.09816915]
[1763078538051,0.01849844,99554.0,99553.0,0.09916915]
[1763078538261,0.08110567,99554.0,99553.0,0.002]
[1763078538466,0.08110567,99554.0,99553.0,0.001]
[1763078538672,0.20093636,99534.0,99533.0,0.00013854]
[1763078539048,0.28020965,99534.0,99533.0,0.00013854]
[1763078539427,0.32362839,99534.0,99533.0,0.00013854]
[1763078539619,0.64662839,99534.0,99533.0,0.00013854]
[1763078540658,0.64662839,99534.0,99533.0,0.00113854]
[1763078540859,0.64662839,99534.0,99533.0,0.00013854]
[1763078543482,0.64662839,99534.0,99500.0,2.88883216]
[1763078543483,0.323,99521.0,99500.0,2.88883216]
[1763078543691,0.32755174,99501.0,99500.0,2.88929322]
[1763078543890,0.65055174,99501.0,99500.0,2.88929322]
[1763078544734,0.66902052,99501.0,99500.0,2.42508503]
[1763078544944,0.66902052,99501.0,99500.0,2.1520255]
[1763078545139,0.76750388,99501.0,99500.0,2.1520255]
[1763078546021,0.76750388,99501.0,99500.0,2.1510255]
[1763078547281,0.76747642,99501.0,99500.0,2.1510255]
[1763078547698,0.76947642,99501.0,99500.0,2.1510255]
[1763078548001,0.62657432,99501.0,99500.0,2.1510255]
[1763078548207,0.62757432,99501.0,99500.0,2.1510255]
[1763078548993,0.62657432,99501.0,99500.0,2.1510255]
[1763078549210,0.66999306,99501.0,99500.0,2.1510255]
[1763078549755,0.66899306,99501.0,99500.0,2.1510255]
[1763078549961,0.71317142,99501.0,99500.0,2.1510255]
[1763078550205,0.71417142,99501.0,99500.0,2.1510255]
[1763078550356,0.71317142,99501.0,99500.0,2.1510255]
[1763078550774,0.71417142,99501.0,99500.0,2.1510255]
[1763078550968,0.71317142,99501.0,99500.0,2.1510255]
[1763078552900,0.66899306,99501.0,99500.0,2.1510255]
[1763078553051,0.03363,99501.0,99500.0,2.1510255]
[1763078553273,0.283643,99501.0,99500.0,2.1510255]